Cogmind - Beta 16 @@@ ROGUE MODE // 2025.10.26 @ 22:31:19 Player: Jaegerpls Result: Destroyed by Y-54 Guardian with Gatling Laser Performance ------------- Evolutions (4) 2000 Regions Visited (5) 1000 Robots Destroyed (62) 310 Value Destroyed (2449) 2449 Prototype IDs (13) 260 Alien Tech Used (0) 0 Bonus (917) 917 TOTAL SCORE: 6936 Bonus ------- Follower Combat Kills 117 Registered with UFD 300 Met Optimus in HQ 500 Cogmind --------- Core Integrity 0/850 Matter 300/300 Energy 100/100 System Corruption 3% Temperature Cool (24) Movement Core (350) Ox6 Location -6/Extension Parts ------- > --- POWER (2) -------- (None) > --- PROPULSION (3) --- (None) > --- UTILITY (7) ------ Large Storage Unit Advanced Signal Interpreter Improved Targeting Computer Makeshift Hacking Suite System Shield > --- WEAPON (3) ------- (None) > --- INVENTORY (15) --- Improved Heat Sink Advanced Heat Sink Energy Well (350) Matter Compressor (88) Spectral Analyzer IFF Parser Component Analysis Suite Tech Extrapolator Peak State ------------ > --- POWER ------------ Angular Momentum Engine Light Angular Momentum Engine > --- PROPULSION ------- Wheel Wheel > --- UTILITY ---------- Scrap Suit Large Storage Unit Advanced Sensor Array Advanced Signal Interpreter Launcher Guidance Computer Makeshift Hacking Suite > --- WEAPON ----------- Phase Cannon Overtuned Barrage Gun Magnetic Acceleration Cannon > --- INVENTORY -------- Improved Heat Sink Spectral Analyzer Advanced Sensor Array IFF Parser Improved Targeting Computer Hardlight Generator Component Analysis Suite Tech Extrapolator Gatling Laser Gatling Laser Missile Launcher Remote Datajack Remote Datajack [Rating: 57] Favorites ----------- Power Ion Engine Engine Ion Engine Power Core Light Fission Core Propulsion Armored Wheel Leg Carbon-fiber Leg Wheel Armored Wheel Utility Large Storage Unit Device Advanced Sensor Array Storage Large Storage Unit Processor Launcher Guidance Computer Hackware Makeshift Hacking Suite Protection Improved Heavy Armor Plating Weapon Rocket Launcher Energy Gun Gatling Laser Energy Cannon Phase Cannon Ballistic Gun Overtuned Barrage Gun Ballistic Cannon Advanced Assault Cannon Launcher Rocket Launcher Special Weapon Remote Datajack Build | -11 -10 -10 -9 -6 -6 ------- Run | Yrd Mat Sub Scr Fac Ext Slots Evolved 8 | . . . . 8 . Power 1 | . . . . 1 . Propulsion 1 | . . . . 1 . Utility 5 | . . . . 5 . Weapon 1 | . . . . 1 . Parts Attached 61 | 8 4 . 9 20 20 Power 11 | 2 . . 1 4 4 Engine 9 | 2 . . 1 3 3 Core 2 | . . . . 1 1 Reactor . | . . . . . . Propulsion 11 | 2 . . 2 3 4 Treads . | . . . . . . Leg 2 | . . . . . 2 Wheel 9 | 2 . . 2 3 2 Hover . | . . . . . . Flight . | . . . . . . Utility 15 | 1 2 . 1 5 6 Device 5 | . . . . 3 2 Storage 2 | 1 1 . . . . Processor 4 | . 1 . 1 1 1 Hackware 2 | . . . . 1 1 Protection 2 | . . . . . 2 Artifact . | . . . . . . Weapon 24 | 3 2 . 5 8 6 Energy Gun 7 | 1 . . . 2 4 Energy Cannon 1 | . . . . 1 . Ballistic Gun 5 | 2 . . 1 1 1 Ballistic Cannon 2 | . . . . 2 . Launcher 5 | . 2 . 3 . . Special Weapon 4 | . . . 1 2 1 Impact Weapon . | . . . . . . Slashing Weapon . | . . . . . . Piercing Weapon . | . . . . . . Special Melee Weapon . | . . . . . . Unidentified Prototypes 1 | . . . 1 . . Parts Lost 37 | . . . 1 10 26 Power 9 | . . . . 3 6 Propulsion 8 | . . . . 4 4 Utility 5 | . . . . . 5 Weapon 15 | . . . 1 3 11 Highest Loss Streak 6 | . . . 1 3 6 To Critical Strikes . | . . . . . . Average Backups 11 | . 10 12 13 10 10 Power . | . 1 1 1 . . Propulsion . | . . 1 . . . Utility 7 | . 4 6 7 7 8 Weapon 2 | . 3 4 3 2 1 Tool/Special . | . . . . . . Unused Backups 17 | . 1 . 8 . 8 Power . | . . . . . . Propulsion 1 | . . . 1 . . Utility 14 | . 1 . 5 . 8 Weapon 2 | . . . 2 . . Tool/Special . | . . . . . . Average Slot Usage (%) 90 | . 99 100 100 83 77 Engine 11 | . 14 14 14 6 10 Core 1 | . . . . 3 . Wheel 18 | . 28 28 28 12 8 Device 5 | . . . . 12 8 Storage 9 | . 14 14 14 6 6 Processor 13 | . 13 14 14 12 13 Hackware 3 | . . . . 5 7 Energy Gun 3 | . . . . 1 12 Ballistic Gun 2 | . . . . 8 . Ballistic Cannon 1 | . . . . 5 . Launcher 14 | . 27 28 27 2 . Peak Build Rating 57 | 6 11 12 25 57 55 Average Rating 33 | 4 10 11 17 51 49 On Entrance 17 | . 6 11 12 22 55 Avg Prop Armor Cover (%) 9 | . . . . . 9 Naked Turns . | . . . . . . Heaviest Build 69 | 13 33 33 41 69 66 Greatest Support 32 | 20 20 20 24 32 32 Greatest Overweight (x) 22 | . 1 1 1 22 12 Average Overweight (x) 1 | . . 1 1 2 3 Largest Inventory Capacity 15 | 8 15 15 15 15 15 Average Capacity 14 | 6 13 15 15 15 15 Most Carried 15 | 2 13 13 15 14 12 Average Carried 11 | 1 10 12 13 10 10 Final Capacity 15 | 8 15 15 15 15 15 Final Carried 13 | 2 12 13 13 12 8 Scrap Suit Usage (%) 35 | . . . . 93 38 Parts Cannibalized 12 | . . . . 8 4 Class Distribution -------------------- 50% | Mutant 21% | Scavenger-Skirmisher 15% | Derelict-Skirmisher 6% | Skirmisher 6% | Scavenger-Mutant Dominant Class ---------------- Mutant | -10/Materials Mutant | -10/Subcaves Mutant | -9/Scraptown Derelict-Skirmisher | -6/Factory Scavenger-Skirmisher | -6/Extension Resources | -11 -10 -10 -9 -6 -6 ----------- Run | Yrd Mat Sub Scr Fac Ext Matter Collected 2294 | 197 233 . 452 643 769 Remotely . | . . . . . . Salvage Created 2693 | . 59 . 724 943 967 Parts 142 | . 8 . 34 60 40 Haulers Intercepted . | . . . . . . Recyclers Shooed 2 | . . . . 1 1 Parts Field Recycled . | . . . . . . Retrieved Matter . | . . . . . . Parts Self-Destructed . | . . . . . . Prevented . | . . . . . . Parts Restored . | . . . . . . Kills | -11 -10 -10 -9 -6 -6 ------- Run | Yrd Mat Sub Scr Fac Ext Combat Hostiles Destroyed 46 | . 3 . 16 12 15 Guns 17 | . . . . 8 9 Cannons 5 | . . . . 3 2 AOE 24 | . 3 . 16 1 4 Classes Destroyed 14 | . 3 . 4 7 . Worker 2 | . . . . 2 . Builder 3 | . . . . 3 . Recycler 4 | . 1 . . 2 1 Operator 2 | . 1 . . . 1 Watcher 5 | . . . . 2 3 Swarmer 6 | . 3 . . 3 . Grunt 15 | . . . . 3 12 Sentry 4 | . . . . 2 2 Hunter 1 | . . . . 1 . Programmer 3 | . . . . 3 . Federalist 3 | . . . 3 . . Explorer 1 | . . . 1 . . Scrapper 11 | . . . 11 . . Thug 1 | . . . . . 1 Mutant 1 | . . . 1 . . Best Kill Streak 15 | . 3 . 15 5 5 Combat Bots Only 15 | . 3 . 15 3 4 Max Kills in Single Turn 3 | . 2 . 3 3 1 Gunslinging . | . . . . . . Exploded 3 | . 2 . 3 1 1 Melee . | . . . . . . Uniques/NPCs Destroyed . | . . . . . . Combat | -11 -10 -10 -9 -6 -6 -------- Run | Yrd Mat Sub Scr Fac Ext Hostile Shots Fired 398 | . 3 . 13 72 310 Missed 140 | . . . 4 20 116 Hits 258 | . 3 . 9 52 194 Projectile 258 | . 3 . 9 52 194 Critical Strikes 7 | . . . 1 . 6 Actively Blocked 1 | . . . . . 1 Damage Taken 3998 | . 21 . 236 1058 2683 Core 934 | . 15 . 67 168 684 Absorbed by Shields 80 | . . . . . 80 Redirected to Shielding 24 | . . . . . 24 Regen/Repaired (Parts) 119 | . 19 . . 62 38 Core Remaining (%) 83 | 100 . . 67 . . Volleys Fired 153 | . 5 . 16 57 75 Largest 3 | . 2 . 2 3 3 Hottest 204 | . 66 . 79 204 177 Shots Fired 291 | . 10 . 27 148 106 Gun 151 | . . . 2 79 70 Cannon 74 | . . . . 54 20 Launcher 47 | . 10 . 25 7 5 Special 19 | . . . . 8 11 Kinetic 149 | . . . 2 123 24 Thermal 76 | . . . . 10 66 Explosive 47 | . 10 . 25 7 5 Electromagnetic . | . . . . . . Robot Hit Streak 11 | . 1 . 6 5 11 Robot Miss Streak 9 | . 1 . 2 6 9 Penetration Max 2 | . . . . 2 . Secondary Targets 1 | . . . . . 1 Max Gunslinging Chain 1 | . . . . . 1 Shots Hit Robots 174 | . 2 . 17 74 81 Core Hits 138 | . 6 . 25 32 75 Critical Kills 5 | . . . . 5 . Critical Parts Destroyed 4 | . . . . 4 . Critical Strikes 14 | . . . . 12 2 Burn 1 | . . . . . 1 Destroy 9 | . . . . 9 . Blast 4 | . . . . 3 1 Melee Attacks . | . . . . . . Impact . | . . . . . . Slashing . | . . . . . . Piercing . | . . . . . . Sneak Attacks . | . . . . . . Combat Hostiles . | . . . . . . Follow-up Attacks . | . . . . . . Damage Inflicted 6419 | . 338 . 1938 2054 2089 Guns 1889 | . . . 18 763 1108 Cannons 1205 | . . . . 783 422 Explosions 3296 | . 338 . 1920 480 558 Melee . | . . . . . . Ramming 29 | . . . . 28 1 Kinetic 1877 | . . . 18 1356 503 Thermal 1551 | . . . . 524 1027 Explosive 2938 | . 338 . 1920 122 558 Electromagnetic 24 | . . . . 24 . Impact . | . . . . . . Slashing . | . . . . . . Piercing . | . . . . . . Highest Corruption 3 | . . . . 3 3 Average Corruption 2 | . . . . 1 3 Corruption Purged . | . . . . . . Corruption Blocked . | . . . . . . Effects 22 | . . . . 7 15 Message Errors 3 | . . . . . 3 Matter Fused 5 | . . . . 1 4 Heat Flow Errors 5 | . . . . 2 3 Energy Discharges 3 | . . . . 2 1 Data Loss (minor) 2 | . . . . 1 1 Data Loss (major) 1 | . . . . . 1 Misfires 3 | . . . . 1 2 Overload Shots . | . . . . . . Overflow Damage 294 | . 7 . 32 224 31 Projectiles 17 | . . . . 11 6 Explosions 277 | . 7 . 32 213 25 Melee . | . . . . . . Knockbacks 9 | . . . . 9 . Impact 1 | . . . . 1 . Kinetic 7 | . . . . 7 . Secondary 1 | . . . . 1 . Self-Inflicted Damage 300 | . . . 45 228 27 Shots 6 | . . . 1 4 1 Rammed 2 | . . . . 1 1 Targets Rammed 2 | . . . . 1 1 Kicked . | . . . . . . Crushed . | . . . . . . Highest Temperature 502 | . 12 . 126 471 502 Average Temperature 113 | . 5 . 36 125 128 Received Heat Transfer 1162 | . . . 121 99 942 Effects 13 | . . . . 5 8 Shutdowns 5 | . . . . 2 3 Energy Bleed 2 | . . . . . 2 Interference 5 | . . . . 3 2 Damage (minor) 1 | . . . . . 1 Siege Activations . | . . . . . . Martial Activations . | . . . . . . Shielding Activations . | . . . . . . Robots Disrupted . | . . . . . . Combat Hostiles . | . . . . . . Robots Corrupted . | . . . . . . Combat Hostiles . | . . . . . . Parts Fried . | . . . . . . Impact Corruptions . | . . . . . . Robots Melted . | . . . . . . Combat Hostiles . | . . . . . . Parts Melted 8 | . . . 2 1 5 Heat Transferred 2688 | . . . . 436 2252 Parts Sabotaged . | . . . . . . Parts Stolen . | . . . . . . Parts Stripped . | . . . . . . Power Chain Reactions . | . . . . . . Alert | -11 -10 -10 -9 -6 -6 ------- Run | Yrd Mat Sub Scr Fac Ext Maximum Alert Level . | . . . . . . Low Security (%) 100 | 100 100 . . 100 100 Level 1 . | . . . . . . Level 2 . | . . . . . . Level 3 . | . . . . . . Level 4 . | . . . . . . Level 5 . | . . . . . . High Security . | . . . . . . Max Security . | . . . . . . Peak Influence 182 | . 94 . . 182 102 Initial 70 | . . . . . 70 Average 35 | . 24 . . 45 28 Influence Increases 1379 | . 195 . . 655 529 Destroy 0b10 Robot/C 660 | . 60 . . 260 340 Destroy 0b10 Robot/NC 90 | . 10 . . 50 30 Destroy Leader 130 | . 10 . . 84 36 Allied During Kill 19 | . . . . 13 6 Successful Hack 73 | . 23 . . 32 18 Disable Machine 135 | . 30 . . 105 . Destroy Structure 197 | . 62 . . 96 39 Lose Combat Pursuer 75 | . . . . 15 60 Influence Decreases 1379 | . 195 . . 512 672 Entered New Map 73 | . . . . . 73 Time Decay 930 | . 195 . . 389 346 Lost Part 303 | . . . . 100 203 Lost Ally 73 | . . . . 23 50 Squads Dispatched 14 | . 1 . . 11 2 Investigation 4 | . 1 . . 2 1 Extermination 4 | . . . . 4 . Reinforcement 3 | . . . . 2 1 Assault . | . . . . . . Garrison 3 | . . . . 3 . Intercept . | . . . . . . Searches Triggered . | . . . . . . Construction Impeded 1 | . . . . 1 . Haulers Reinforced 1 | . . . . 1 . Active Scanning Responses . | . . . . . . Cargo Convoy Interrupts . | . . . . . . Stealth | -11 -10 -10 -9 -6 -6 --------- Run | Yrd Mat Sub Scr Fac Ext Distress Signals 10 | . 3 . . 2 5 Communications Jammed . | . . . . . . Distress Signals . | . . . . . . Times Spotted 71 | . 5 . 21 19 26 Peak Tracking Total 6 | . 3 . 4 3 6 Tactical Retreats 5 | . . . . 1 4 Traps | -11 -10 -10 -9 -6 -6 ------- Run | Yrd Mat Sub Scr Fac Ext Traps Triggered 4 | . 1 . . 3 . Indirectly . | . . . . . . Trap Hack Attempts . | . . . . . . Triggered . | . . . . . . Disarmed 6 | . 6 . . . . Reprogrammed . | . . . . . . Reused . | . . . . . . Traps Extracted . | . . . . . . Installed . | . . . . . . Triggered . | . . . . . . Machines | -11 -10 -10 -9 -6 -6 ---------- Run | Yrd Mat Sub Scr Fac Ext Machines Disabled 14 | . 2 . 5 7 . Max in Single Turn 3 | . 1 . 2 3 . Machines Repaired . | . . . . . . Machines Dismantled . | . . . . . . Machines Sabotaged . | . . . . . . Overloaded Fab Kills . | . . . . . . Hacking | -11 -10 -10 -9 -6 -6 --------- Run | Yrd Mat Sub Scr Fac Ext Machines Accessed 25 | . 9 . 7 7 2 Terminals 10 | . 7 . . 2 1 Fabricators 1 | . . . . 1 . Repair Stations 2 | . 1 . . 1 . Recycling Units 2 | . 1 . . . 1 Scanalyzers 1 | . . . . 1 . Garrison Access 2 | . . . . 2 . Total Hacks 100 | . 36 . 44 11 9 Successful 81 | . 23 . 44 8 6 Failed 19 | . 13 . . 3 3 Catastrophic . | . . . . . . Database Lockouts . | . . . . . . Manual 42 | . 27 . . 6 9 Terminals 44 | . 32 . . 4 8 Fabricators 1 | . . . . 1 . Repair Stations 3 | . 2 . . 1 . Recycling Units 3 | . 2 . . . 1 Scanalyzers 3 | . . . . 3 . Garrison Access 2 | . . . . 2 . Terminal Hacks 54 | . 5 . 44 1 4 Record 40 | . 1 . 39 . . Robot Analysis 5 | . 1 . 4 . . Open Door 1 | . . . . 1 . Branch Access Points 1 | . . . . . 1 Emergency Access Points 1 | . . . . . 1 Locate Traps 1 | . 1 . . . . Disarm Traps 1 | . 1 . . . . Reprogram Traps 1 | . . . . . 1 Zone Layout 2 | . 1 . . . 1 Proto ID Catalog 1 | . . . 1 . . Fabricator Hacks . | . . . . . . Repair Station Hacks 2 | . 2 . . . . Scan Component 1 | . 1 . . . . Repair 1 | . 1 . . . . Recycling Unit Hacks 1 | . 1 . . . . Report Inventory 1 | . 1 . . . . Scanalyzer 3 | . . . . 3 . Retrieve Study 3 | . . . . 3 . Garrison Access Hacks . | . . . . . . Unauthorized Hacks 21 | . 15 . . 4 2 Terminals 17 | . 14 . . 2 1 Track 2 | . 2 . . . . Assimilate 2 | . 1 . . 1 . Botnet 8 | . 6 . . 1 1 Skim 5 | . 5 . . . . Fabricators . | . . . . . . Repair Stations 1 | . . . . 1 . Mechanics 1 | . . . . 1 . Recycling Units 2 | . 1 . . . 1 Reject 1 | . 1 . . . . Fedlink 1 | . . . . . 1 Scanalyzers . | . . . . . . Garrison Access 1 | . . . . 1 . Reprogram 1 | . . . . 1 . Data Cores Recovered 1 | . . . . . 1 Used 1 | . . . . . 1 Hacking Detections 14 | . 8 . . 5 1 Full Trace Events 1 | . 1 . . . . Feedback Events . | . . . . . . Feedback Blocked . | . . . . . . Robot Schematics Acquired . | . . . . . . Robots Built . | . . . . . . Authchips . | . . . . . . Time . | . . . . . . Total Robot Build Rating . | . . . . . . Part Schematics Acquired . | . . . . . . Parts Built . | . . . . . . Authchips . | . . . . . . Time . | . . . . . . Total Part Build Rating . | . . . . . . Part Studies Acquired 3 | . . . . 3 . Parts Repaired 1 | . 1 . . . . Time 26 | . 26 . . . . Parts Recycled . | . . . . . . Recycled Matter . | . . . . . . Retrieved Matter . | . . . . . . Retrieved Components . | . . . . . . Parts Scanalyzed . | . . . . . . Part Schematics Acquired . | . . . . . . Parts Damaged . | . . . . . . Bothacking | -11 -10 -10 -9 -6 -6 ------------ Run | Yrd Mat Sub Scr Fac Ext Used RIF Installer . | . . . . . . Robots Hacked . | . . . . . . Non-combat . | . . . . . . Combat . | . . . . . . Robot Hacks Applied . | . . . . . . Relay Couplers Released . | . . . . . . Fabnet Peak Effective % . | . . . . . . Robots Rewired 5 | . . . . . 5 Allies Hacked . | . . . . . . Hacks Repelled . | . . . . . . Allies | -11 -10 -10 -9 -6 -6 -------- Run | Yrd Mat Sub Scr Fac Ext Total Allies 9 | . 1 . . 3 5 Largest Group 3 | . 1 . . 3 3 Highest-Rated Group 87 | . 10 . . 87 87 Highest-Rated Ally 34 | . 10 . . 29 34 Total Orders . | . . . . . . Ally Attacks 40 | . . . . 25 15 Total Damage 634 | . . . . 337 297 Kills 5 | . . . . 2 3 Allies Corrupted . | . . . . . . Allies Melted 7 | . . . 7 . . Intel | -11 -10 -10 -9 -6 -6 ------- Run | Yrd Mat Sub Scr Fac Ext Active Infowar (turns) 2830 | . . . . 1766 1064 Sensors 2830 | . . . . 1766 1064 Robot Analysis Total 5 | . 1 . 4 . . Derelict Logs Recovered 1 | . . . 1 . . Drone Launches . | . . . . . . Drone Recoveries . | . . . . . . Exploration | -11 -10 -10 -9 -6 -6 ------------- Run | Yrd Mat Sub Scr Fac Ext Turns Passed 6153 | 39 684 259 2016 1767 1388 Spaces Moved 4464 | 33 672 151 1866 1044 698 Core 17 | 1 . . . 11 5 Treads . | . . . . . . Legs 28 | . . . . . 28 Wheels 4419 | 32 672 151 1866 1033 665 Hover . | . . . . . . Flight . | . . . . . . Fastest Speed 50 | 50 80 95 95 95 100 Average Speed 111 | 79 92 95 101 123 142 Slowest Speed 1150 | 80 95 95 105 1150 650 Overloaded Moves . | . . . . . . Propulsion Burnouts . | . . . . . . Robots Hopped . | . . . . . . Potential Cave-ins . | . . . . . . Cave-ins Triggered . | . . . . . . Exploration Rate (%) 47 | 4 99 18 89 23 52 Regions Visited 5 Branch Regions 3 Pre-discovered Areas . | . . . . . . Known Exits Taken 1 | . . . . 1 . Unknown Exits Taken 4 | 1 1 1 1 . . Scrap Searched 5 | . . . 5 . . Spaces Dug 22 | . 15 . . . 7 Terrain Destroyed 440 | . 89 . 184 123 44 Melee . | . . . . . . Projectile 19 | . . . . 15 4 AOE 421 | . 89 . 184 108 40 Terrain Rammed . | . . . . . . Walls Destroyed . | . . . . . . Machines Disabled . | . . . . . . Actions | -11 -10 -10 -9 -6 -6 --------- Run | Yrd Mat Sub Scr Fac Ext Total 5400 | 41 724 266 1964 1421 984 Wait 636 | . 26 115 38 280 177 Move 4459 | 32 671 150 1865 1043 698 Hop . | . . . . . . Pick Up 46 | 1 14 1 16 9 5 Fast Attach 28 | 6 1 . . 6 15 Attach 23 | . . . 4 10 9 Detach . | . . . . . . Swap 19 | 2 3 . 7 7 . Drop 26 | . 4 . 18 . 4 Fire 153 | . 5 . 16 57 75 Melee . | . . . . . . Ram 2 | . . . . 1 1 Kick . | . . . . . . Crush . | . . . . . . Escape Stasis 8 | . . . . 8 . Rewire . | . . . . . . Trap . | . . . . . . Miscellaneous . | . . . . . . Route ------- -11/Scrapyard -10/Materials (discovered 6 exits: [*Mat x3] / [*Min x2] / [*Sub]) -10/Subcaves -9/Scraptown (discovered 2 exits: *Fac x2) -6/Factory (discovered 2 exits: *Low / *Ext) -6/Extension (discovered 1 exit: Cet) History --------- Turn | Location | Event 7 | -11/Scrapyard | Discovered new exit (range 16) 40 | -11/Scrapyard | Entered Materials 41 | -10/Materials | Met a group of wandering Federalists 96 | -10/Materials | Discovered new exit (range 15) 170 | -10/Materials | Discovered new exit (range 16) 317 | -10/Materials | Build established: Mutant 380 | -10/Materials | Discovered new exit (range 16) 426 | -10/Materials | Repaired Signal Interpreter 473 | -10/Materials | Discovered new exit (range 8) 633 | -10/Materials | Discovered new exit (range 8) 715 | -10/Materials | Discovered new exit (range 10) 724 | -10/Materials | Entered Subcaves 725 | -10/Subcaves | Continued accompanying wandering Federalists (3) 832 | -10/Subcaves | Shifting Twisted Machinery released Mak. Thermal Plating 834 | -10/Subcaves | Shifting Twisted Machinery released Sub. Beam Cannon 966 | -10/Subcaves | Wandering Federalist uncovered a shortcut to Scraptown 983 | -10/Subcaves | Entered Scraptown 1154 | -9/Scraptown | Heard Great Nut preacher, LISTEN AND RECITE! 1318 | -9/Scraptown | Visited Shadow of the Wyrm 1340 | -9/Scraptown | Visited TADAMA 1375 | -9/Scraptown | Visited Junk Repository 1409 | -9/Scraptown | Visited Red Mages 1472 | -9/Scraptown | Visited UFD Registry 1472 | -9/Scraptown | Registered with UFD as "Arcmachine" 1498 | -9/Scraptown | Visited The Evicted 1522 | -9/Scraptown | Visited Junk Repository 1577 | -9/Scraptown | Scanned Subdweller tech in exchange for log data 1580 | -9/Scraptown | Learned Research trap positions 1597 | -9/Scraptown | Discovered new exit (range 5) 1848 | -9/Scraptown | Visited Abandonware Association 1865 | -9/Scraptown | Learned abandonware demo "ERRANTS.EXE" 1865 | -9/Scraptown | Learned abandonware demo "MELTYB.EXE" 1888 | -9/Scraptown | Visited Junk Cannon Lab 1897 | -9/Scraptown | Found Prototype Special Weapon 1913 | -9/Scraptown | Identified Junk Cannon 1931 | -9/Scraptown | Visited Analyses Database 2122 | -9/Scraptown | Visited Derelict Rescue Squad 2152 | -9/Scraptown | Visited Infowarlord's Domain 2159 | -9/Scraptown | Found Spectral Analyzer 2198 | -9/Scraptown | Visited DA-N13 Charitable Foundation 2212 | -9/Scraptown | Found DCF Scrap (30 items) 2243 | -9/Scraptown | Visited Observation Area 2303 | -9/Scraptown | Visited Chapter 10 2378 | -9/Scraptown | Found Scrap Suit 2398 | -9/Scraptown | Discovered new exit (range 5) 2697 | -9/Scraptown | Met Optimus 2697 | -9/Scraptown | Accepted into 0bPrime 2785 | -9/Scraptown | Visited Science Guys 2803 | -9/Scraptown | Civil war broke out across Scraptown 2964 | -9/Scraptown | Destroyed 15 combat bots 2999 | -9/Scraptown | Entered Factory 2999 | -6/Factory | Evolved 8 slots: Power x1, Propulsion x1, Utility x5, Weapon x1 3291 | -6/Factory | Build established: Derelict-Skirmisher 3701 | -6/Factory | Discovered new exit (range 6) 3704 | -6/Factory | Identified exit to Extension 3792 | -6/Factory | Discovered new exit (range 11) 3802 | -6/Factory | Identified exit to Lower Caves 4300 | -6/Factory | Attached CPS modules to G-50 Soldier. 4303 | -6/Factory | Attached CPS modules to G-50 Soldier. 4434 | -6/Factory | Build established: Scavenger-Skirmisher 4529 | -6/Factory | Lost 3 parts (1p1n1w) 4589 | -6/Factory | Lost 3 parts (2n1w) 4766 | -6/Factory | Entered Extension 4952 | -6/Extension | Spotted B-75 Beast 5123 | -6/Extension | Identified exit to Cetus 5142 | -6/Extension | Loaded intel: 2 recycling unit locations 5256 | -6/Extension | Lost 3 allies 5345 | -6/Extension | Lost 6 parts (1p1n1u3w) 5377 | -6/Extension | Core integrity fell below 50% 5439 | -6/Extension | Lost 6 parts (1p1n1u3w) 6099 | -6/Extension | Lost 5 parts (1n2u2w) 6134 | -6/Extension | Core integrity fell below 20% 6141 | -6/Extension | Disrupted transfer network 6154 | -6/Extension | Destroyed by Y-54 Guardian with Gatling Laser Last Messages --------------- 06079_ R-10 Processor collects Carbon-fiber Leg. 06083_ Acquired Hvy. Laser. 06084_ System corrupted: Matter fused (-9). 06084_ R-10 Processor collects Lgt. Angular Momentum Engine. 06095_ Acquired 55 matter. 06124_ U-05 Engineer sends out distress signal. 06127_ Machine disabled. 06127_ Lgt. Angular Momentum Engine destroyed. 06127_ B-75 Beast suffers critical hit (Burn). 06130_ Lgt. Angular Momentum Engine destroyed. 06130_ ALERT: Hostiles spotted, dispatching reinforcements to Terminal E007. 06133_ Com. Wheel destroyed. 06133_ Hvy. Laser blasted off. 06133_ Hvy. Laser destroyed. 06139_ Adv. Heat Sink destroyed. 06141_ ALERT: Persistent threat to transfer network, dispatching additional forces. 06153_ Slammed into Y-54 Guardian. Map ----- +----------------------------------------------------+ | ?????????????????????????????????????????????????? | | ?????????????????????????????????????????????????? | | ?????????########????????????????????????????????? | | ?????????# ] ########?????????????????????????? | | ?????????# ! + #?????????????????????????? | | #######??# ! #### #?????????????????????????? | | #??# # #?????????????????????????? | | #??# + ! #?????????????????????????? | | #??# ! # ####?????????????????????????? | | #??######### #####?????????????????????????? | | ## #??????????# #####?????????????????????? | | ?# #??????????# #?????????????????????? | | ?# #??????????# #?????????????????????? | | ?# #??######### #?????????????????????? | | ## #### # #?????????????????????? | | + ] + #?????????????????????? | | ########## # #?????????????????????? | | ?????????#! =% # #?????????????????????? | | ?????????#[ + #?????????????????????? | | ?????????############ #?????????????????????? | | ????????????????????# #?????????????????????? | | ????????????????????# #?????????????????????? | | ??????????????????###+#### #?????????????????????? | | ??????????????????# # #?????????????????????? | | ??????????????????# Y# #?????????????????????? | | ??????????????????# @ #??????????????"""????? | | ??????????????????# #Y#???????????????Y"????? | | ??????????????????# # #??????????????"""????? | | ??????????????????# #[#?????????????????????? | | ??????????????????######## #?????????????????????? | | ?????????????????????????# #?????????????????????? | | ?????????????????????????# #?????????????????????? | | ????????????????????????? ?????????????????????? | | ????????????????????????? ?????????????????????? | | ????????????????????????? ?????????????????????? | | ????????????????????????? ?????????????????????? | | ##########"###"########? ????????????????????? | | ???????????????????? | | % % ???????????????????? | | ???????????????????? | | % ???????????????????? | | % ???????????????????? | | ######################## ???????????????????? | | ???????????????????????# ???????????????????? | | ???????????????????????? ????????????????????? | | ?????????????????????????????????????????????????? | | ?????????????????????????????????????????????????? | | ?????????????????????????????????????????????????? | | ?????????????????????????????????????????????????? | | ?????????????????????????????????????????????????? | +----------------------------------------------------+ Best States ------------- Heat Dissipation 56 Energy Generation 31 Energy Capacity 350 Matter Stores 300 Matter Capacity 300 Sight Range 16 Robot Scan Range 16 Terrain Scan Density 10 Armor Coverage 600 Weapon Shielding 66 Evasion (%) 44 Targeting Accuracy 6 Launcher Accuracy 20 Offensive Hacking 11 Defensive Hacking 10 Item Schematics ----------------- None Robot Schematics ------------------ None Fabricated ------------ Nothing Repaired ---------- Signal Interpreter | 5% | -10/Materials Studied --------- Arm. Wheel | -6/Factory | Hacked Missile Launcher | -6/Factory | Hacked Gatling Laser | -6/Factory | Hacked Alien Tech Used ----------------- None Achievements -------------- Brute Force Civilization 2243 For Emergencies Only Hydra Link The Feds Remodeling Strength In Numbers That Tickles Uncivil War Well Done Challenges ------------ None Game ------ Seed MediumRainbowAnalyzer Manual? 0 Play Time 01:30:40 Cumulative 22.7 hours Start 2025.10.26 @ 20:57:41 End 2025.10.26 @ 22:31:19 Sessions 1 Manual Loads 0 Difficulty Rogue Special Mode None Game No. 21 Rogue 21 Adventurer 0 Explorer 0 Win Type - Total 0 Types 0/0/0/0/0/0/0/0/0/0 Lore% 20 Gallery% 20 Achievement% 15 Wizard Run 0 Options --------- Layout 1 ASCII 0 Keyboard 0 Movement Mouse Keybinds 0 Fullscreen 2 Font 32/SmallcapsGlow Map View 50x35 Zoom Use 0% Tactical HUD 1 Map Filters NONE Filters NONE Steam 1 RUN: 41a4984a-989e-4230-bfd6-bfdaaab9dca9